bitfinex/quotes_SOLUSD_20250829
["timestamp","ask_amount","ask_price","bid_price","bid_amount"]
[1756450986746,54.86,211.79,211.65,13.59559401]
[1756450986924,28.79260761,211.73,211.55,12.4871738]
[1756450987240,13.59559401,211.73,211.56,13.59559401]
[1756450987443,42.38820162,211.73,211.56,13.59559401]
[1756450987624,28.79260761,211.71,211.56,13.59559401]
[1756450988240,0.06,211.68,211.58,13.59559401]
[1756450988445,54.54,211.68,211.58,13.59559401]
[1756450989018,40.0662,211.68,211.57,16.54298812]
[1756450989224,40.0662,211.68,211.57,4.72656803]
[1756450989433,68.85880761,211.68,211.57,4.72656803]
[1756450989630,64.27640761,211.68,211.55,4.72680738]
[1756450989829,0.06,211.73,211.55,4.72680738]
[1756450990031,13.59559401,211.68,211.55,4.72680738]
[1756450990448,54.24,211.67,211.55,16.5443446]
[1756450991247,28.79260761,211.71,211.56,13.59559401]
[1756450991434,54.12,211.66,211.56,13.59559401]
[1756450991618,28.79260761,211.72,211.56,13.59559401]
[1756450991819,54.1,211.67,211.56,13.59559401]
[1756450992136,54.02,211.69,211.56,13.59559401]
[1756450992340,54.02,211.69,211.58,13.59559401]
[1756450992545,54.02,211.69,211.6,13.59559401]
[1756450992752,54.02,211.69,211.61,0.67]
[1756450992958,0.06,211.73,211.61,0.67]
[1756450993247,0.06,211.73,211.62,13.59559401]
[1756450993428,0.06,211.73,211.64,13.59559401]
[1756450993951,0.06,211.73,211.66,13.59559401]
[1756450994357,0.06,211.73,211.68,16.53439152]
[1756450994657,0.06,211.73,211.69,0.67]
[1756450994830,0.06,211.73,211.7,14.26559401]
[1756450995026,1e-08,211.73,211.7,14.26559401]
[1756450995324,1e-08,211.73,211.72,13.59559401]
[1756450995853,1e-08,211.73,211.72,0.67]
[1756450996352,1e-08,211.73,211.72,5.39321934]
[1756450997161,0.2,211.9,211.73,13.59559401]
[1756450997343,0.2,211.9,211.75,13.59559401]
[1756450997540,0.2,211.9,211.88,28.71581913]
[1756450997746,0.2,211.9,211.89,28.71581913]
[1756450998460,0.2,211.9,211.8,28.71581913]
[1756450998763,0.2,211.9,211.88,28.71581913]
[1756450999267,0.2,211.9,211.89,28.71581913]
[1756451000837,0.2,211.9,211.89,33.43524902]
[1756451001565,0.06,211.95,211.9,13.59559401]
[1756451001765,0.06,211.95,211.9,14.26559401]
[1756451001942,0.06,211.95,211.94,57.43163826]
[1756451002558,53.6,212.08,211.95,13.59559401]
[1756451002861,34.06,212.14,211.98,13.59559401]
[1756451003059,34.06,212.14,212.11,28.71581913]
[1756451003263,34.06,212.14,212.12,28.71581913]
[1756451003469,0.2,212.18,212.13,28.71581913]
[1756451003656,0.2,212.18,212.14,28.71581913]
[1756451003965,0.2,212.18,212.16,28.71581913]
[1756451004554,0.2,212.18,212.17,28.71581913]
[1756451006361,0.2,212.18,212.17,42.98141314]
[1756451006571,0.2,212.18,212.17,47.69461481]
[1756451007054,0.2,212.18,212.17,18.97879568]
[1756451007380,0.2,212.18,212.17,28.71581913]
[1756451009454,0.2,212.18,212.12,5.38431228]
[1756451009656,0.2,212.18,212.17,28.71581913]
[1756451010378,0.2,212.18,212.12,5.38431228]
[1756451010379,0.2,212.18,212.15,28.71581913]
[1756451010557,0.2,212.18,212.16,28.71581913]
[1756451010753,0.2,212.18,212.17,28.71581913]
[1756451011360,0.2,212.18,212.17,29.43581913]
[1756451012779,0.2,212.18,212.17,34.1490208]
[1756451013557,0.2,212.18,212.17,33.4290208]
[1756451013881,0.2,212.18,212.17,34.1490208]
[1756451014062,52.68,212.28,212.18,13.59559401]
[1756451014582,81.39581913,212.28,212.21,28.71581913]
[1756451014786,52.68,212.28,212.2,4.71253212]
[1756451014974,81.39581913,212.28,212.2,33.42835125]
[1756451015171,52.68,212.28,212.21,28.71581913]
[1756451015981,52.68,212.28,212.22,28.71581913]
[1756451016297,13.59559401,212.35,212.2,4.71253212]
[1756451016298,87.26,212.31,212.24,28.71581913]
[1756451016589,34.26,212.31,212.2,5.43253212]
[1756451016954,34.26,212.31,212.25,28.71581913]
[1756451017181,34.26,212.31,212.26,28.71581913]
[1756451017381,34.26,212.31,212.21,13.59559401]
[1756451017557,34.26,212.31,212.23,13.59559401]
[1756451017558,0.2,212.31,212.23,13.59559401]
[1756451017758,0.2,212.31,212.25,13.59559401]
[1756451017960,0.2,212.31,212.3,28.71581913]
[1756451018205,0.2,212.31,212.3,42.31141314]
[1756451018410,0.2,212.31,212.3,43.03141314]
[1756451018603,0.2,212.31,212.3,29.43581913]
[1756451018798,0.2,212.31,212.3,47.74172873]
[1756451018982,0.2,212.34,212.31,13.59559401]
[1756451019183,0.2,212.34,212.33,42.31141314]
[1756451019400,0.2,212.4,212.39,28.71581913]
[1756451019802,0.2,212.4,212.35,0.72]
[1756451020000,0.2,212.4,212.39,28.71581913]
[1756451020611,0.2,212.4,212.39,29.43581913]
[1756451020783,0.2,212.4,212.39,47.73973274]
[1756451021310,0.2,212.4,212.39,34.14413873]
[1756451021885,0.2,212.4,212.39,5.4283196]
[1756451022606,0.2,212.4,212.39,34.14413873]
[1756451022818,0.2,212.4,212.39,33.42413873]
[1756451023008,0.2,212.4,212.39,47.73973274]
[1756451023209,4.64765496,212.62,212.39,47.73973274]
[1756451023210,20.0,212.64,212.39,17.1991186]
[1756451023517,28.71581913,212.48,212.42,28.71581913]
[1756451023694,28.71581913,212.47,212.4,42.31141314]
[1756451023897,28.71581913,212.47,212.4,28.71581913]
[1756451024104,28.71581913,212.47,212.39,17.1991186]
[1756451024105,28.71581913,212.44,212.39,18.8615996]
[1756451024424,0.2,212.47,212.37,5.42864385]
[1756451024592,28.71581913,212.45,212.38,28.71581913]
[1756451024906,28.71581913,212.45,212.39,4.7083196]
[1756451025300,0.2,212.47,212.38,33.42435891]
[1756451025501,0.06,212.4,212.38,33.42435891]
[1756451025702,0.06,212.4,212.38,0.72]
[1756451025905,0.06,212.4,212.39,0.72]
[1756451026089,0.06,212.4,212.39,43.03141314]
[1756451026889,0.06,212.4,212.39,47.73973274]
[1756451027212,0.06,212.4,212.39,19.02391361]
[1756451029004,0.06,212.4,212.35,0.72]
[1756451029193,0.06,212.4,212.35,4.70916402]
[1756451029386,28.57090813,212.36,212.21,4.71231327]
[1756451029607,51.52,212.36,212.22,0.72]
[1756451029910,0.06,212.4,212.31,1.887817]
[1756451030117,0.06,212.4,212.22,13.59559401]
[1756451030118,28.63090813,212.4,212.22,13.59559401]
[1756451030294,28.63090813,212.4,212.3,0.72]
[1756451030494,28.57090813,212.37,212.3,0.72]
[1756451031096,28.57090813,212.37,212.31,4.71009373]
[1756451031306,0.06,212.4,212.31,4.71009373]
[1756451031498,0.06,212.4,212.32,14.31559401]
[1756451031908,0.06,212.4,212.34,13.59559401]
[1756451032389,0.06,212.4,212.35,0.72]
[1756451032697,0.06,212.4,212.36,13.59559401]
[1756451032906,0.06,212.4,212.38,13.59559401]
[1756451033422,0.06,212.4,212.39,14.31559401]
[1756451034313,1e-08,212.4,212.39,14.31559401]
[1756451034506,0.06,212.43,212.4,13.59559401]
[1756451034695,1e-08,212.45,212.4,14.31559401]
[1756451034896,0.06,212.59,212.42,13.59559401]
[1756451035104,28.57090813,212.51,212.45,4.70698987]
[1756451035402,28.57090813,212.51,212.47,13.59559401]
[1756451035604,51.06,212.59,212.49,13.59559401]
[1756451035810,28.57090813,212.5,212.45,31.34373956]
[1756451036009,51.06,212.59,212.46,14.31559401]
[1756451036234,28.57090813,212.53,212.47,0.72]
[1756451036401,28.57090813,212.5,212.46,13.59559401]
[1756451036600,28.57090813,212.5,212.45,4.70698987]
[1756451036820,28.57090813,212.48,212.45,4.70698987]
[1756451037019,28.57090813,212.48,212.44,18.30276008]
[1756451037218,0.06,212.58,212.45,0.72]
[1756451037522,28.57090813,212.52,212.46,13.59559401]
[1756451037822,28.57090813,212.53,212.46,13.59559401]
[1756451038023,0.06,212.58,212.46,13.59559401]
[1756451038024,28.57090813,212.51,212.46,13.59559401]
[1756451038218,0.06,212.58,212.48,13.59559401]
[1756451038420,28.57090813,212.51,212.48,13.59559401]
[1756451038622,28.57090813,212.51,212.46,0.72]
[1756451038820,28.57090813,212.51,212.48,13.59559401]
[1756451039015,28.57090813,212.51,212.48,0.72]
[1756451039220,28.57090813,212.49,212.46,4.70676833]
[1756451039523,28.57090813,212.51,212.48,13.59559401]
[1756451039708,28.57090813,212.53,212.48,14.31559401]
[1756451039905,28.57090813,212.51,212.48,14.31559401]
[1756451040118,28.57090813,212.51,212.5,13.59559401]
[1756451040424,0.2,212.62,212.5,0.72]
[1756451040623,28.57090813,212.57,212.5,0.72]
[1756451040935,0.2,212.62,212.5,0.72]
[1756451041224,0.2,212.62,212.52,13.59559401]
[1756451041405,0.2,212.62,212.54,13.59559401]
[1756451041825,0.2,212.62,212.56,13.59559401]
[1756451042231,0.2,212.62,212.58,13.59559401]
[1756451042415,0.06,212.79,212.6,13.59559401]
[1756451042618,0.06,212.82,212.62,13.59559401]
[1756451042921,28.57090813,212.8,212.64,13.59559401]
[1756451043129,28.57090813,212.78,212.66,13.59559401]
[1756451043317,0.06,212.86,212.68,13.59559401]
[1756451043502,0.06,212.86,212.7,13.59559401]
[1756451043708,28.57090813,212.82,212.7,13.59559401]
[1756451044012,28.57090813,212.83,212.72,13.59559401]
[1756451044330,0.06,212.89,212.74,13.59559401]
[1756451044536,28.57090813,212.82,212.74,13.59559401]
[1756451044719,28.57090813,212.82,212.74,0.66]
[1756451045226,0.06,212.91,212.77,13.59559401]
[1756451045417,0.06,212.91,212.76,16.4504606]
[1756451045418,50.06,212.95,212.79,13.59559401]
[1756451045814,28.57090813,212.9,212.81,13.59559401]
[1756451046015,28.57090813,212.9,212.83,13.59559401]
[1756451046225,28.57090813,212.9,212.85,13.59559401]
[1756451046540,49.98,212.98,212.87,13.59559401]
[1756451046712,28.57090813,212.93,212.87,13.59559401]
[1756451046913,28.57090813,212.88,212.81,0.66]
[1756451047113,0.12,213.0,212.81,0.66]
[1756451047329,0.06,213.0,212.84,13.59559401]
[1756451047629,0.06,212.99,212.86,13.59559401]
[1756451047815,28.57090813,212.91,212.83,4.69858572]
[1756451048130,28.57090813,212.89,212.84,0.66]
[1756451048330,28.57090813,212.89,212.84,14.25559401]
[1756451048514,28.57090813,212.89,212.86,13.59559401]
[1756451048916,49.82,212.97,212.86,13.59559401]
[1756451049222,28.57090813,212.88,212.84,13.59559401]
[1756451049429,28.57090813,212.88,212.85,4.69814423]
[1756451049615,0.06,212.96,212.84,13.59559401]
[1756451049927,28.57090813,212.87,212.84,13.59559401]
[1756451050113,28.57090813,212.87,212.84,14.25559401]
[1756451050314,28.57090813,212.87,212.84,13.59559401]
[1756451050625,28.57090813,212.87,212.84,14.25559401]
[1756451051011,49.76,212.96,212.78,0.66]
[1756451051012,28.57090813,212.85,212.78,0.66]
[1756451051210,28.57090813,212.84,212.79,13.59559401]
[1756451051413,28.57090813,212.84,212.8,4.69924812]
[1756451051731,0.06,212.9,212.8,5.35924812]
[1756451052029,28.57090813,212.83,212.8,5.35924812]
[1756451052206,28.57090813,212.83,212.82,13.59559401]
[1756451052404,49.6,212.93,212.82,14.25559401]
[1756451052620,28.57090813,212.85,212.82,14.25559401]
[1756451053304,28.57090813,212.85,212.82,13.59559401]
[1756451053523,28.57090813,212.91,212.84,13.59559401]
[1756451053809,0.06,213.0,212.86,13.59559401]
[1756451054030,28.57090813,212.95,212.86,13.59559401]
[1756451054214,0.06,213.0,212.88,13.59559401]
[1756451054420,28.57090813,212.96,212.88,13.59559401]
[1756451054622,28.57090813,212.96,212.9,13.59559401]
[1756451054936,28.57090813,212.94,212.9,13.59559401]
[1756451055233,28.57090813,212.94,212.92,13.59559401]
[1756451055621,0.06,213.0,212.89,13.59559401]
[1756451055930,0.06,213.0,212.87,14.117315]
[1756451055931,28.57090813,212.91,212.88,0.66]
[1756451056137,28.57090813,212.91,212.89,13.59559401]
[1756451056628,28.57090813,212.91,212.88,13.59559401]
[1756451056810,28.57090813,212.89,212.86,13.59559401]
[1756451057231,28.57090813,212.87,212.84,13.59559401]
[1756451057618,28.57090813,212.87,212.79,12.40828386]
[1756451057619,28.48519069,212.85,212.68,29.14519069]
[1756451057819,28.48519069,212.77,212.68,45.60183916]
[1756451058020,4.5180958,212.75,212.69,0.66]
[1756451058324,28.48519069,212.79,212.69,29.14519069]
[1756451058529,49.14,212.9,212.7,0.66]
[1756451058719,28.48519069,212.77,212.71,13.59559401]
[1756451058912,28.48519069,212.77,212.73,13.59559401]
[1756451059136,28.48519069,212.77,212.74,0.66]
[1756451059517,28.48519069,212.77,212.76,13.59559401]
[1756451060335,28.48519069,212.77,212.75,4.70035252]
[1756451060514,28.48519069,212.77,212.71,11.75296427]
[1756451060515,28.48519069,212.77,212.72,4.70101541]
[1756451060713,28.48519069,212.74,212.72,4.70101541]
[1756451060935,28.48519069,212.74,212.73,13.59559401]
[1756451061434,28.48519069,212.77,212.73,14.25559401]
[1756451061637,28.48519069,212.77,212.75,13.59559401]
[1756451061836,48.86,212.85,212.75,13.59559401]
[1756451061837,13.59559401,212.93,212.76,0.66]
[1756451062030,28.48519069,212.8,212.76,0.66]
[1756451062230,28.48519069,212.8,212.75,13.59559401]
[1756451062231,28.48519069,212.82,212.78,13.59559401]
[1756451062428,28.48519069,212.82,212.8,13.59559401]
[1756451062630,28.48519069,212.82,212.8,14.25559401]
[1756451062935,28.48519069,212.85,212.82,13.59559401]
[1756451063128,28.48519069,212.85,212.82,0.66]
[1756451063316,28.48519069,212.85,212.78,13.59559401]
[1756451063517,28.48519069,212.85,212.84,18.29395897]
[1756451063942,28.48519069,212.87,212.84,18.95395897]
[1756451064140,28.48519069,212.89,212.86,13.59559401]
[1756451064522,0.06,213.0,212.88,13.59559401]
[1756451064928,0.06,213.0,212.9,13.59559401]
[1756451065146,28.48519069,212.97,212.9,13.59559401]
[1756451065334,28.48519069,212.93,212.9,13.59559401]
[1756451065534,28.48519069,212.93,212.92,13.59559401]
[1756451065734,28.48519069,212.94,212.92,18.95219367]
[1756451066241,28.48519069,212.94,212.93,13.59559401]
[1756451066642,28.48519069,212.94,212.9,4.69685246]
[1756451066848,0.06,213.0,212.88,13.59559401]
[1756451067043,28.48519069,212.91,212.88,13.59559401]
[1756451067238,28.48519069,212.89,212.88,13.59559401]
[1756451067544,28.48519069,212.91,212.88,13.59559401]
[1756451067851,28.48519069,212.91,212.89,5.35726149]
[1756451068150,0.06,213.0,212.89,5.35726149]
[1756451068327,28.48519069,212.92,212.89,5.35726149]
[1756451069333,28.48519069,212.9,212.85,13.59559401]
[1756451069634,28.48519069,212.86,212.85,14.25559401]
[1756451070246,28.48519069,212.86,212.85,18.95373824]
[1756451070640,0.06,213.0,212.85,18.95373824]
[1756451070846,28.48519069,212.86,212.85,18.95373824]
[1756451071049,0.06,213.0,212.85,18.95373824]
[1756451071244,28.48519069,212.87,212.85,18.95373824]
[1756451071549,28.48519069,212.87,212.86,0.65]
[1756451072046,0.06,213.0,212.86,0.65]
[1756451072247,28.48519069,212.91,212.88,13.59559401]
[1756451072446,28.48519069,212.91,212.9,13.59559401]
[1756451072651,28.48519069,212.91,212.9,14.24559401]
[1756451072851,0.06,213.0,212.9,14.24559401]
[1756451073352,28.48519069,212.93,212.9,14.24559401]
[1756451073857,28.48519069,212.92,212.9,14.24559401]
[1756451074055,28.48519069,212.92,212.91,14.24559401]
[1756451074254,28.48519069,212.92,212.91,18.94241426]
[1756451075758,0.06,213.0,212.92,13.59559401]
[1756451075943,28.48519069,212.93,212.92,13.59559401]
[1756451076143,28.48519069,212.93,212.92,14.24559401]
[1756451076348,0.06,213.0,212.93,4.69637909]
[1756451076539,28.48519069,212.94,212.93,18.2919731]
[1756451077457,0.06,213.0,212.93,4.69637909]
[1756451078356,0.06,213.0,212.96,13.59559401]
[1756451078548,18.56155995,212.97,212.96,13.59559401]
[1756451079060,18.56155995,212.97,212.96,14.24559401]
[1756451079268,18.56155995,212.98,212.96,14.24559401]
[1756451079940,18.56155995,212.97,212.96,18.94131151]
[1756451080143,18.56155995,212.97,212.8,39.94360902]
[1756451080348,18.56155995,212.89,212.86,0.65]
[1756451080552,18.56155995,212.88,212.84,13.59559401]
[1756451080733,47.8,212.98,212.86,13.59559401]
[1756451080937,47.8,212.98,212.85,0.65]
[1756451080938,18.56155995,212.87,212.85,0.65]
[1756451081156,47.8,212.98,212.85,0.65]
[1756451081458,18.56155995,212.87,212.85,0.65]
[1756451082053,18.56155995,212.87,212.86,4.69792351]
[1756451082243,18.56155995,212.87,212.86,5.34792351]
[1756451082559,18.56155995,212.88,212.86,17.0927323]
[1756451082746,18.56155995,212.87,212.86,30.68832631]
[1756451083661,18.56155995,212.88,212.87,13.59559401]
[1756451083843,18.56155995,212.88,212.87,14.24559401]
[1756451084362,18.56155995,212.9,212.87,30.68755388]
[1756451084550,18.56155995,212.9,212.89,13.59559401]
[1756451084751,66.42155995,213.0,212.89,0.65]
[1756451084949,18.56155995,212.9,212.89,0.65]
[1756451085457,18.56155995,212.9,212.88,13.59559401]
[1756451085666,18.56155995,212.89,212.87,4.69770282]
[1756451086139,18.56155995,212.88,212.84,13.59559401]
[1756451086343,18.56155995,212.85,212.84,13.59559401]
[1756451086547,18.56155995,212.85,212.82,0.65]
[1756451086749,3.83343045,212.99,212.84,13.59559401]
[1756451086970,18.56155995,212.85,212.84,13.59559401]
[1756451087147,18.56155995,212.85,212.84,0.65]
[1756451088052,18.56155995,212.85,212.81,13.59559401]
[1756451088243,18.56155995,212.85,212.82,0.65]
[1756451088567,3.83343045,212.95,212.84,13.59559401]
[1756451088739,18.56155995,212.85,212.84,13.59559401]
[1756451088939,18.56155995,212.85,212.84,14.24559401]
[1756451089247,18.56155995,212.86,212.84,14.24559401]
[1756451089566,18.56155995,212.86,212.85,14.24559401]
[1756451090547,18.56155995,212.86,212.85,18.94373824]
[1756451092964,18.56155995,212.89,212.85,30.68909882]
[1756451093280,18.56155995,212.88,212.86,0.65]
[1756451093483,18.56155995,212.89,212.86,0.65]
[1756451093660,18.56155995,212.88,212.87,0.65]
[1756451094086,18.56155995,212.88,212.85,30.03909882]
[1756451094271,18.56155995,212.87,212.85,30.03909882]
[1756451094469,18.56155995,212.86,212.85,30.03909882]
[1756451095086,18.56155995,212.87,212.85,30.03909882]
[1756451095586,18.56155995,212.87,212.85,18.29373824]
[1756451096486,18.56155995,212.87,212.86,13.59559401]
[1756451096794,18.56155995,212.87,212.85,18.29373824]
[1756451096795,18.56155995,212.88,212.85,4.69814423]
[1756451097006,18.56155995,212.86,212.85,13.59559401]
[1756451097458,51.59343045,212.98,212.85,13.59559401]
[1756451097662,18.56155995,212.86,212.82,4.69860876]
[1756451097881,18.56155995,212.83,212.82,4.69860876]
[1756451098280,18.56155995,212.83,212.78,4.69968982]
[1756451098475,18.56155995,212.79,212.78,4.69968982]
[1756451098676,18.56155995,212.79,212.78,18.29528383]
[1756451099188,47.74,212.87,212.78,18.94528383]
[1756451099395,18.56155995,212.81,212.78,18.94528383]
[1756451099566,18.56155995,212.79,212.78,18.94528383]
[1756451100176,18.56155995,212.79,212.78,18.29528383]
[1756451100686,47.74,212.87,212.78,18.29528383]
[1756451100887,47.74,212.87,212.78,4.69968982]
[1756451101086,18.56155995,212.8,212.78,4.69968982]
[1756451101285,18.56155995,212.79,212.78,4.69968982]
[1756451102084,18.56155995,212.79,212.76,4.69993793]
[1756451102280,18.56155995,212.77,212.76,4.69993793]
[1756451103084,18.56155995,212.77,212.75,0.03]
[1756451103269,18.56155995,212.76,212.75,0.03]
[1756451104889,47.74,212.77,212.75,0.03]
[1756451105089,18.56155995,212.76,212.75,0.03]
[1756451110170,18.56155995,212.76,212.62,23.51526661]
[1756451110171,53.54859047,212.75,212.5,0.03]
[1756451110374,33.59559401,212.51,212.5,0.03]
[1756451110578,20.0,212.49,212.3,0.67]
[1756451110778,18.56155995,212.39,212.32,0.67]
[1756451110998,18.56155995,212.36,212.34,0.67]
[1756451111179,22.02341609,212.36,212.35,0.7]
[1756451111594,18.56155995,212.34,212.32,13.59559401]
[1756451111783,22.02341609,212.34,212.32,4.70984429]
[1756451113193,18.56155995,212.34,212.29,4.71053747]
[1756451113509,25.42277028,212.34,212.33,14.29559401]
[1756451113807,25.42277028,212.34,212.33,0.03]
[1756451114308,25.42277028,212.34,212.29,4.71053747]
[1756451114604,18.56155995,212.3,212.29,4.71053747]
[1756451114808,73.81277028,212.3,212.23,2.45944055]
[1756451115106,18.56155995,212.24,212.23,4.71186919]
[1756451115294,25.42277028,212.24,212.23,4.71186919]
[1756451115694,25.42277028,212.24,212.23,5.38186919]
[1756451115905,25.42277028,212.24,212.23,18.9774632]
[1756451116089,6.86121033,212.24,212.23,18.9774632]
[1756451116296,25.42277028,212.24,212.23,18.9774632]
[1756451116820,6.86121033,212.24,212.23,18.9774632]
[1756451117114,6.86121033,212.24,212.23,18.3074632]
[1756451117408,3.43492787,212.24,212.23,18.9774632]
[1756451117797,0.67,212.37,212.23,18.9774632]
[1756451117798,47.74,212.33,212.24,13.59559401]
[1756451118002,18.56155995,212.25,212.24,13.59559401]
[1756451118203,0.67,212.37,212.24,14.26559401]
[1756451118408,3.38893396,212.36,212.26,13.59559401]
[1756451118713,18.56155995,212.29,212.28,13.59559401]
[1756451118905,18.56155995,212.29,212.28,0.67]
[1756451119400,18.56155995,212.29,212.28,5.38075937]
[1756451120491,47.74,212.38,212.29,13.59559401]
[1756451120698,18.56155995,212.3,212.29,13.59559401]
[1756451120896,18.56155995,212.3,212.29,14.26559401]
[1756451121700,18.56155995,212.31,212.3,16.48610456]
[1756451121909,18.56155995,212.31,212.3,17.15610456]
[1756451123616,47.74,212.39,212.3,17.15610456]
[1756451123814,18.56155995,212.31,212.3,17.15610456]
[1756451125093,48.41,212.39,212.3,17.15610456]
[1756451125301,18.56155995,212.31,212.3,17.15610456]
[1756451125711,18.56155995,212.31,212.3,16.48610456]
[1756451125901,48.41,212.39,212.3,16.48610456]
[1756451126106,18.56155995,212.31,212.3,16.48610456]
[1756451126498,18.56155995,212.31,212.3,4.71031559]
[1756451127031,0.67,212.36,212.29,4.71033589]
[1756451127199,18.56155995,212.3,212.29,4.71033589]
[1756451127512,18.56155995,212.3,212.27,4.71076357]
[1756451127716,18.56155995,212.28,212.24,18.3072412]
[1756451128420,18.56155995,212.28,212.24,30.75635917]
[1756451128820,48.39,212.32,212.24,30.08635917]
[1756451129007,18.56155995,212.27,212.24,30.08635917]
[1756451129506,47.72,212.31,212.24,30.08635917]
[1756451129711,18.56155995,212.27,212.24,30.08635917]
[1756451129911,18.56155995,212.27,212.24,30.75635917]
[1756451130622,47.72,212.31,212.24,30.75635917]
[1756451130821,47.72,212.31,212.24,30.08635917]
[1756451131028,18.56155995,212.26,212.24,30.08635917]
[1756451131327,18.56155995,212.26,212.24,18.3072412]
[1756451131500,18.56155995,212.25,212.24,4.71164719]
[1756451132506,18.56155995,212.25,212.24,13.59559401]
[1756451133312,13.59559401,212.24,212.2,0.03]
[1756451133515,44.56155995,212.21,212.2,0.03]
[1756451133815,47.93301961,212.21,212.2,0.03]
[1756451134006,13.59559401,212.2,212.18,0.03]
[1756451134202,13.59559401,212.2,212.06,0.68]
[1756451134203,18.56155995,212.19,212.09,4.71497948]
[1756451134408,73.72,212.23,212.09,4.71497948]
[1756451134409,18.56155995,212.1,212.09,4.71497948]
[1756451135018,18.56155995,212.1,212.04,13.59559401]
[1756451135219,18.56155995,212.09,212.08,4.81498704]
[1756451135605,18.56155995,212.09,212.08,0.1]
[1756451136721,18.56155995,212.09,212.08,4.81520181]
[1756451137229,18.56155995,212.09,212.08,0.1]
[1756451137439,18.56155995,212.09,212.08,4.81520181]
[1756451137636,18.56155995,212.09,212.08,0.1]
[1756451138017,18.56155995,212.09,212.01,26.68]
[1756451138018,13.59559401,212.06,211.95,0.03]
[1756451138221,65.13831448,212.09,211.95,0.03]
[1756451138222,6.39226465,212.05,211.95,0.03]
[1756451138425,37.1231199,211.96,211.95,0.03]
[1756451138625,18.56155995,211.96,211.95,0.03]
[1756451139219,0.48,212.0,211.95,0.03]
[1756451139422,18.56155995,211.96,211.95,0.03]
[1756451139628,26.48,211.99,211.95,0.03]
[1756451139931,45.04155995,211.96,211.85,4.72032098]
[1756451140242,26.0,211.95,211.85,4.72032098]
[1756451140428,18.56155995,211.94,211.85,4.72032098]
[1756451140737,45.04155995,211.94,211.83,16.52268328]
[1756451141035,18.56155995,211.83,211.77,4.72210416]
[1756451141236,18.56155995,211.81,211.77,4.72210416]
[1756451141439,18.56155995,211.81,211.77,5.40210416]
[1756451142715,18.56155995,211.81,211.77,0.68]
[1756451143018,26.0,211.86,211.77,5.40207192]
[1756451143335,18.56155995,211.8,211.76,4.82228821]
[1756451143738,18.56155995,211.8,211.76,0.1]
[1756451144035,26.0,211.86,211.76,0.1]
[1756451144036,18.56155995,211.78,211.76,0.1]
[1756451144344,0.45,211.83,211.76,0.1]
[1756451144531,18.56155995,211.79,211.76,4.82228977]
[1756451144842,18.56155995,211.79,211.76,0.1]
[1756451145021,0.45,211.83,211.76,0.1]
[1756451145022,18.56155995,211.78,211.76,0.1]
[1756451145340,0.45,211.8,211.76,0.1]
[1756451145540,18.56155995,211.77,211.76,0.1]
[1756451145941,18.56155995,211.78,211.77,4.72210416]
[1756451146241,18.56155995,211.8,211.77,4.72210416]
[1756451146418,51.24,211.83,211.77,4.72210416]
[1756451146618,18.56155995,211.8,211.77,4.72210416]
[1756451147222,0.45,211.9,211.78,14.27559401]
[1756451147421,18.56155995,211.87,211.79,0.68]
[1756451147637,0.45,211.91,211.8,13.59559401]
[1756451147932,0.45,211.91,211.78,13.59559401]
[1756451148242,18.56155995,211.88,211.8,13.59559401]
[1756451148444,18.56155995,211.88,211.78,18.56155995]
[1756451148445,0.45,212.0,211.81,0.68]
[1756451148651,18.56155995,211.95,211.89,13.59559401]
[1756451148954,18.56155995,211.95,211.9,0.68]
[1756451149248,0.45,211.99,211.8,13.59559401]
[1756451149424,18.56155995,211.97,211.91,0.68]
[1756451150028,18.56155995,211.95,211.92,13.59559401]
[1756451150234,18.56155995,211.95,211.93,0.68]
[1756451150633,26.0,212.01,211.93,5.39842426]
[1756451150845,18.56155995,211.96,211.93,5.39842426]
[1756451151233,18.56155995,211.96,211.93,4.71842426]
[1756451151947,18.56155995,211.94,211.88,4.71965263]
[1756451152141,18.56155995,211.92,211.88,4.71965263]
[1756451152341,18.56155995,211.89,211.78,5.40188119]
[1756451152647,18.56155995,211.8,211.78,4.72188119]
[1756451153550,26.0,211.86,211.78,4.72188119]
[1756451153749,18.56155995,211.8,211.76,4.82215248]
[1756451154259,18.56155995,211.8,211.76,5.50215248]